fUSD/lending_fUSD_20240327
["ID","MTS","AMOUNT","RATE_DAILY","PERIOD"]
[320799799,1711561899954,-638.01,0.00055616,120]
[320799800,1711561899966,-500.0,0.00055616,120]
[320799801,1711561899976,-1948.43,0.00055616,120]
[320799802,1711561899987,-594.89,0.00055616,120]
[320799803,1711561899997,-58191.63,0.00055616,120]
[320799804,1711561900008,-4872.06,0.00055616,120]
[320799805,1711561900019,-500.0,0.00055616,120]
[320799806,1711561900030,-500.0,0.00055616,120]
[320799807,1711561900040,-916.42,0.00055616,120]
[320799808,1711561900051,-25819.15,0.00055616,120]
[320799809,1711561900062,-500.0,0.00055616,120]
[320799810,1711561900072,-672.12,0.00055616,120]
[320799811,1711561900083,-500.0,0.00055616,120]
[320799812,1711561900094,-2822.64,0.00055616,120]
[320799813,1711561900106,-5739.01,0.00055616,120]
[320799814,1711561900116,-1773.91,0.00055616,120]
[320799815,1711561900126,-1599.36,0.00055616,120]
[320799816,1711561900137,-7896.21,0.00055616,120]
[320799817,1711561900147,-580.5,0.00055616,120]
[320799818,1711561900157,-500.0,0.00055616,120]
[320799819,1711561900167,-702.31,0.00055616,120]
[320799820,1711561900177,-4077.6,0.00055616,120]
[320799821,1711561900187,-1910.86,0.00055616,120]
[320799822,1711561900197,-962.02,0.00055616,120]
[320799823,1711561900209,-993.68,0.00055616,120]
[320799824,1711561900220,-1981.61,0.00055616,120]
[320799825,1711561900230,-1310.9,0.00055616,120]
[320799826,1711561900242,-5861.79,0.00055616,120]
[320799827,1711561900252,-861.74,0.00055616,120]
[320799828,1711561900263,-3868.28,0.00055616,120]
[320799829,1711561900274,-4602.46,0.00055616,120]
[320799830,1711561900285,-500.0,0.00055616,120]
[320799831,1711561900296,-2663.41,0.00055616,120]
[320799832,1711561900307,-2285.5,0.00055616,120]
[320799833,1711561900319,-7201.79,0.00055616,120]
[320799834,1711561900330,-1041.92,0.00055616,120]
[320799835,1711561900411,-500.0,0.00055616,120]
[320799836,1711561900424,-2054.16,0.00055616,120]
[320799837,1711561900435,-500.0,0.00055616,120]
[320799838,1711561900446,-1431.94,0.00055616,120]
[320799839,1711561900456,-500.0,0.00055616,120]
[320799840,1711561900466,-18909.02,0.00055616,120]
[320799841,1711561900477,-1528.43,0.00055616,120]
[320799842,1711561900486,-1715.09,0.00055616,120]
[320799843,1711561900496,-543.42,0.00055616,120]
[320799844,1711561900506,-836.18,0.00055616,120]
[320799845,1711561900517,-2529.3,0.00055616,120]
[320799846,1711561900530,-1204.05,0.00055616,120]
[320799847,1711561900540,-500.0,0.00055616,120]
[320799848,1711561900551,-1890.07,0.00055616,120]
[320799849,1711561900560,-882.15,0.00055616,120]
[320799850,1711561900570,-1395.77,0.00055616,120]
[320799851,1711561900580,-500.0,0.00055616,120]
[320799852,1711561900591,-500.0,0.00055616,120]
[320799853,1711561900603,-22066.4,0.00055616,120]
[320799854,1711561900613,-9133.29,0.00055616,120]
[320799855,1711561900623,-3276.54,0.00055616,120]
[320799856,1711561900634,-3779.21,0.00055616,120]
[320799857,1711561900644,-500.0,0.00055616,120]
[320799858,1711561900654,-505.39,0.00055616,120]
[320799859,1711561900664,-1407.53,0.00055616,120]
[320799860,1711561900675,-500.0,0.00055616,120]
[320799861,1711561900685,-1780.21,0.00055616,120]
[320799862,1711561900695,-744.71,0.00055616,120]
[320799863,1711561900706,-3375.62,0.00055616,120]
[320799864,1711561900717,-500.0,0.00055616,120]
[320799865,1711561900727,-1245.33,0.00055616,120]
[320799866,1711561900737,-825.22,0.00055616,120]
[320799867,1711561900748,-500.0,0.00055616,120]
[320799868,1711561900759,-2499.0,0.00055616,120]
[320799869,1711561900769,-1139.82,0.00055616,120]
[320799870,1711561900781,-3390.46,0.00055616,120]
[320799871,1711561900791,-500.0,0.00055616,120]
[320799872,1711561900801,-2297.82,0.00055616,120]
[320799873,1711561900811,-36215.98,0.00055616,120]
[320799874,1711561900821,-2115.9,0.00055616,120]
[320799875,1711561900831,-504.0,0.00055616,120]
[320799876,1711561900841,-500.0,0.00055616,120]
[320799877,1711561900853,-635.43,0.00055616,120]
[320799878,1711561900865,-509.72,0.00055616,7]
[320799879,1711561900877,-1985.21,0.00055616,120]
[320799880,1711561900887,-4093.44,0.00055616,120]
[320799881,1711561900897,-598.33,0.00055616,120]
[320799882,1711561900907,-3703.02,0.00055616,120]
[320799883,1711561900917,-3170.6,0.00055616,120]
[320799884,1711561900927,-4518.78,0.00055616,120]
[320799885,1711561900937,-816.34,0.00055616,120]
[320799886,1711561900949,-550.58,0.00055616,120]
[320799887,1711561900960,-5597.96,0.00055616,120]
[320799888,1711561900970,-500.0,0.00055616,2]
[320799889,1711561900980,-500.0,0.00055616,120]
[320799890,1711561900991,-3365.42,0.00055616,120]
[320799891,1711561901002,-1850.45,0.00055616,120]
[320799892,1711561901013,-500.0,0.00055616,120]
[320799893,1711561901024,-543.16,0.00055616,120]
[320799894,1711561901034,-1437.25,0.00055616,120]
[320799895,1711561901045,-500.0,0.00055616,120]
[320799896,1711561901055,-13261.96,0.00055616,120]
[320799897,1711561901065,-500.0,0.00055616,120]
[320799898,1711561901075,-1655.41,0.00055616,120]
[320799899,1711561901086,-2460.7,0.00055616,120]
[320799900,1711561901096,-1308.22,0.00055616,120]
[320799901,1711561901107,-688.55,0.00055616,120]
[320799902,1711561901117,-500.0,0.00055616,120]
[320799903,1711561901128,-500.0,0.00055616,120]
[320799904,1711561901138,-500.0,0.00055616,120]
[320799905,1711561901148,-606.26,0.00055616,120]
[320799906,1711561901158,-3292.56,0.00055616,120]
[320799907,1711561901169,-4771.81,0.00055616,120]
[320799908,1711561901179,-1591.58,0.00055616,120]
[320799909,1711561901189,-2911.12,0.00055616,120]
[320799910,1711561901200,-8314.67,0.00055616,21]
[320799911,1711561901211,-224.08,0.00055616,120]
[320799912,1711561901221,-1246.89,0.00055616,120]
[320799913,1711561901231,-515.6,0.00055616,120]
[320799914,1711561901241,-1689.16,0.00055616,120]
[320799915,1711561901251,-500.0,0.00055616,120]
[320799916,1711561901260,-770.25,0.00055616,120]
[320799917,1711561901271,-8380.88,0.00055616,120]
[320799918,1711561901282,-614.46,0.00055616,120]
[320799919,1711561901292,-2989.36,0.00055616,120]
[320799920,1711561901303,-10959.62,0.00055616,120]
[320799921,1711561901314,-12744.26,0.00055616,120]
[320799922,1711561901324,-521.47,0.00055616,120]
[320799923,1711561901334,-2645.1,0.00055616,120]
[320799924,1711561901344,-758.38,0.00055616,120]
[320799925,1711561901356,-500.0,0.00055616,120]
[320799926,1711561901366,-500.0,0.00055616,120]
[320799927,1711561901377,-11517.5,0.00055616,120]
[320799928,1711561901386,-2628.59,0.00055616,120]
[320799929,1711561901396,-1981.45,0.00055616,120]
[320799930,1711561901407,-2618.9,0.00055616,120]
[320799931,1711561901418,-500.0,0.00055616,120]
[320799932,1711561901428,-500.0,0.00055616,120]
[320799933,1711561901438,-2635.65,0.00055616,120]
[320799934,1711561901449,-2440.72,0.00055616,120]
[320799935,1711561901459,-1641.2,0.00055616,120]
[320799936,1711561901469,-1422.66,0.00055616,120]
[320799937,1711561901480,-1953.26,0.00055616,120]
[320799938,1711561901490,-500.0,0.00055616,120]
[320799939,1711561901500,-680.59,0.00055616,120]
[320799940,1711561901510,-500.0,0.00055616,120]
[320799941,1711561901520,-851.11,0.00055616,120]
[320799942,1711561901531,-516.23,0.00055616,120]
[320799943,1711561901541,-4524.02,0.00055616,120]
[320799944,1711561901551,-833.36,0.00055616,120]
[320799945,1711561901560,-500.0,0.00055616,120]
[320799946,1711561901569,-2147.51,0.00055616,120]
[320799947,1711561901579,-500.0,0.00055616,120]
[320799948,1711561901589,-1826.97,0.00055616,120]
[320799949,1711561901599,-500.0,0.00055616,120]
[320799950,1711561901609,-1200.4,0.00055616,120]
[320799951,1711561901619,-4994.03,0.00055616,120]
[320799952,1711561901629,-6977.94,0.00055616,120]
[320799953,1711561901638,-1042.58,0.00055616,120]
[320799954,1711561901649,-500.0,0.00055616,120]
[320799955,1711561901660,-1312.03,0.00055616,120]
[320799956,1711561901670,-818.62,0.00055616,120]
[320799957,1711561901681,-1814.79,0.00055616,120]
[320799958,1711561901691,-1730.09,0.00055616,120]
[320799959,1711561901702,-500.0,0.00055616,120]
[320799960,1711561901713,-3092.64,0.00055616,120]
[320799961,1711561901723,-858.06,0.00055616,120]
[320799962,1711561901734,-500.0,0.00055616,120]
[320799963,1711561901744,-3331.35,0.00055616,120]
[320799964,1711561901755,-1107.56,0.00055616,120]
[320799965,1711561901765,-500.0,0.00055616,120]
[320799966,1711561901775,-1629.06,0.00055616,120]
[320799967,1711561901785,-1926.96,0.00055616,120]
[320799968,1711561901795,-5998.21,0.00055616,120]
[320799969,1711561901805,-1276.61,0.00055616,120]
[320799970,1711561901816,-500.0,0.00055616,120]
[320799971,1711561901827,-1204.74,0.00055616,120]
[320799972,1711561901836,-978.47,0.00055616,120]
[320799973,1711561901847,-500.0,0.00055616,120]
[320799974,1711561901859,-500.0,0.00055616,120]
[320799975,1711561901872,-512.32,0.00055616,120]
[320799976,1711561901883,-1112.11,0.00055616,120]
[320799977,1711561901894,-500.0,0.00055616,120]
[320799978,1711561901907,-5147.59,0.00055616,120]
[320799979,1711561901917,-500.0,0.00055616,120]
[320799980,1711561901927,-1278.89,0.00055616,120]
[320799981,1711561901938,-1257.45,0.00055616,120]
[320799982,1711561901949,-5642.74,0.00055616,120]
[320799983,1711561901959,-232.6645678,0.00055616,120]
[320799984,1711561901968,-679.21,0.00055616,120]
[320799985,1711561901978,-1894.45,0.00055616,120]
[320799986,1711561901988,-150.0,0.00055618,14]
[320799987,1711561901997,-150.0,0.00055632,14]
[320799988,1711561902006,-150.0,0.00055661,14]
[320799989,1711561902017,-186.67,0.00055667,120]
[320799990,1711561902028,-150.0,0.00055672,14]
[320799991,1711561902037,-150.0,0.00055692,14]
[320799992,1711561902048,-150.0,0.00055695,14]
[320799993,1711561902058,-150.0,0.000557,12]
[320799994,1711561902070,-150.0,0.00055709,14]
[320799995,1711561902081,-150.0,0.00055723,14]
[320799996,1711561902092,-152.91494694,0.00055724,120]
[320799997,1711561902107,-150.0,0.00055731,14]
[320799998,1711561902119,-150.0,0.0005574,14]
[320799999,1711561902133,-150.0,0.00055747,14]
[320800000,1711561902144,-150.19866873,0.00055749,66]
[320800001,1711561902155,-200.0,0.00055759,120]
[320800002,1711561902166,-800.0,0.00055759,120]
[320800003,1711561902177,-500.0,0.00055759,120]
[320800004,1711561902189,-200.0,0.00055759,120]
[320800005,1711561902203,-150.0,0.0005576,14]
[320800006,1711561902216,-500.0,0.0005577,120]
[320800007,1711561902228,-500.0,0.0005577,120]
[320800008,1711561902240,-500.0,0.0005577,120]
[320800009,1711561902252,-150.0,0.00055772,14]
[320800010,1711561902266,-150.0,0.000558,12]
[320800011,1711561902278,-150.0,0.000558,12]
[320800012,1711561902291,-150.0,0.000558,12]
[320800013,1711561902305,-152.91494694,0.00055806,120]
[320800014,1711561902316,-157.18743014,0.00055807,120]
[320800015,1711561902328,-150.0,0.0005581,14]
[320800016,1711561902341,-150.0,0.00055814,14]
[320800017,1711561902362,-160.07183501,0.00055814,120]
[320800018,1711561902381,-150.50617537,0.00055822,120]
[320800019,1711561902394,-154.1293337,0.00055823,120]
[320800020,1711561902406,-150.0,0.00055827,14]
[320800021,1711561902418,-150.0,0.00055834,14]
[320800022,1711561902437,-150.0,0.00055856,14]
[320800023,1711561902449,-150.0,0.00055862,14]
[320800024,1711561902462,-152.91494694,0.0005588,120]
[320800025,1711561902474,-150.0,0.00055888,14]
[320800026,1711561902486,-500.0,0.00055889,90]
[320800027,1711561902497,-1000.0,0.00055889,90]
[320800028,1711561902509,-526.0,0.0005589,120]
[320800029,1711561902522,-500.0,0.0005589,120]
[320800030,1711561902535,-500.0,0.0005589,120]
[320800031,1711561902547,-500.0,0.0005589,120]
[320800032,1711561902561,-500.0,0.0005589,120]
[320800033,1711561902573,-500.0,0.0005589,120]
[320800034,1711561902585,-631.01,0.0005589,120]
[320800035,1711561902597,-500.0,0.0005589,120]
[320800036,1711561902624,-271.86937021,0.0005589,120]
[320800037,1711561902638,-217.55,0.0005589,120]
[320800038,1711561902651,-500.0,0.0005589,120]
[320800039,1711561902663,-530.38,0.0005589,120]
[320800040,1711561902675,-500.0,0.0005589,120]
[320800041,1711561902687,-500.0,0.0005589,120]
[320800042,1711561902699,-500.0,0.0005589,120]
[320800043,1711561902711,-500.0,0.0005589,120]
[320800044,1711561902722,-500.0,0.0005589,120]
[320800045,1711561902733,-500.0,0.0005589,120]
[320800046,1711561902745,-517.87,0.0005589,120]
[320800047,1711561902757,-500.0,0.0005589,120]
[320800048,1711561902769,-736.48,0.0005589,120]
[320800049,1711561902780,-500.0,0.0005589,120]
[320800050,1711561902791,-500.0,0.0005589,120]
[320800051,1711561902803,-500.0,0.0005589,120]
[320800052,1711561902815,-500.0,0.0005589,120]
[320800053,1711561902827,-1149.15,0.0005589,120]
[320800054,1711561902838,-683.71,0.0005589,120]
[320800055,1711561902857,-600.0,0.0005589,120]
[320800056,1711561902868,-588.63,0.0005589,120]
[320800057,1711561902880,-1653.05,0.0005589,120]
[320800058,1711561902895,-721.85,0.0005589,120]
[320800059,1711561902906,-758.1,0.0005589,120]
[320800060,1711561902919,-751.34,0.0005589,120]
[320800061,1711561902931,-500.0,0.0005589,120]
[320800062,1711561902944,-1106.66,0.0005589,120]
[320800063,1711561902955,-500.0,0.0005589,120]
[320800064,1711561902967,-667.72,0.0005589,120]
[320800065,1711561902979,-410.9987871,0.0005589,120]
[320800066,1711561902990,-525.52,0.0005589,120]
[320800067,1711561903002,-546.53,0.0005589,120]
[320800068,1711561903014,-265.78138218,0.0005589,120]
[320800069,1711561903027,-500.0,0.0005589,120]
[320800070,1711561903038,-1650.28,0.0005589,120]
[320800071,1711561903260,-1208.64,0.0005589,120]
[320800072,1711561903272,-500.0,0.0005589,120]
[320800073,1711561903283,-500.0,0.0005589,120]
[320800074,1711561903294,-1675.07,0.0005589,120]
[320800075,1711561903305,-500.0,0.0005589,120]
[320800076,1711561903317,-500.0,0.0005589,120]
[320800077,1711561903327,-500.0,0.0005589,60]
[320800078,1711561903338,-875.05,0.0005589,120]
[320800079,1711561903348,-500.0,0.0005589,120]
[320800080,1711561903362,-500.0,0.0005589,120]
[320800081,1711561903373,-500.0,0.0005589,120]
[320800082,1711561903384,-526.04,0.0005589,120]
[320800083,1711561903394,-500.0,0.0005589,120]
[320800084,1711561903405,-896.37,0.0005589,120]
[320800085,1711561903416,-774.53,0.0005589,120]
[320800086,1711561903427,-623.96,0.0005589,120]
[320800087,1711561903438,-1500.57,0.0005589,120]
[320800088,1711561903448,-500.0,0.0005589,120]
[320800089,1711561903459,-1293.46,0.0005589,120]
[320800090,1711561903470,-663.1,0.0005589,120]
[320800091,1711561903480,-500.0,0.0005589,120]
[320800092,1711561903491,-500.0,0.0005589,120]
[320800093,1711561903502,-591.57,0.0005589,120]
[320800094,1711561903513,-540.2,0.0005589,120]
[320800095,1711561903523,-500.0,0.0005589,120]
[320800096,1711561903534,-500.0,0.0005589,120]
[320800097,1711561903545,-826.04,0.0005589,120]
[320800098,1711561903555,-802.7,0.0005589,120]
[320800099,1711561903565,-792.47,0.0005589,120]
[320800100,1711561903576,-551.8,0.0005589,120]
[320800101,1711561903587,-500.0,0.0005589,120]
[320800102,1711561903598,-507.03,0.0005589,120]
[320800103,1711561903613,-814.62,0.0005589,120]
[320800104,1711561903623,-500.0,0.0005589,120]
[320800105,1711561903634,-519.12,0.0005589,120]
[320800106,1711561903645,-500.0,0.0005589,120]
[320800107,1711561903655,-500.0,0.0005589,120]
[320800108,1711561903666,-553.94,0.0005589,120]
[320800109,1711561903676,-1363.26,0.0005589,120]
[320800110,1711561903687,-681.15,0.0005589,120]
[320800111,1711561903698,-1247.0,0.0005589,120]
[320800112,1711561903709,-828.0,0.0005589,120]
[320800113,1711561903720,-907.95,0.0005589,120]
[320800114,1711561903731,-691.03,0.0005589,120]
[320800115,1711561903742,-500.0,0.0005589,120]
[320800116,1711561903752,-500.0,0.0005589,120]
[320800117,1711561903764,-1943.45,0.0005589,120]
[320800118,1711561903774,-1363.72,0.0005589,120]
[320800119,1711561903785,-500.0,0.0005589,120]
[320800120,1711561903796,-500.0,0.0005589,120]
[320800121,1711561903807,-500.0,0.0005589,120]
[320800122,1711561903818,-1264.66,0.0005589,120]
[320800123,1711561903829,-500.0,0.0005589,120]
[320800124,1711561903840,-518.11,0.0005589,120]
[320800125,1711561903853,-500.0,0.0005589,120]
[320800126,1711561903868,-785.6,0.0005589,120]
[320800127,1711561903879,-500.0,0.0005589,120]
[320800128,1711561903889,-500.0,0.0005589,120]
[320800129,1711561903901,-500.0,0.0005589,120]
[320800130,1711561903911,-533.96,0.0005589,120]
[320800131,1711561903922,-610.76,0.0005589,120]
[320800132,1711561903933,-500.0,0.0005589,120]
[320800133,1711561903944,-500.0,0.0005589,120]
[320800134,1711561903956,-619.35,0.0005589,120]
[320800135,1711561903967,-601.27,0.0005589,120]
[320800136,1711561903978,-500.0,0.0005589,120]
[320800137,1711561903988,-723.32,0.0005589,120]
[320800138,1711561903999,-658.94,0.0005589,30]
[320800139,1711561904009,-604.53,0.0005589,120]
[320800140,1711561904018,-500.0,0.0005589,120]
[320800141,1711561904028,-627.6,0.0005589,120]
[320800142,1711561904037,-541.49,0.0005589,120]
[320800143,1711561904047,-525.41,0.0005589,120]
[320800144,1711561904056,-500.0,0.0005589,120]
[320800145,1711561904065,-500.0,0.0005589,120]
[320800146,1711561904074,-1259.13,0.0005589,120]
[320800147,1711561904083,-500.0,0.0005589,120]
[320800148,1711561904093,-1285.86,0.0005589,120]
[320800149,1711561904105,-961.87,0.0005589,120]
[320800150,1711561904116,-1118.41,0.0005589,120]
[320800151,1711561904127,-500.0,0.0005589,120]
[320800152,1711561904137,-653.33,0.0005589,120]
[320800153,1711561904148,-500.0,0.0005589,120]
[320800154,1711561904158,-515.61,0.0005589,120]
[320800155,1711561904169,-500.0,0.0005589,120]
[320800156,1711561904178,-500.0,0.0005589,120]
[320800157,1711561904189,-881.34,0.0005589,120]
[320800158,1711561904199,-594.96,0.0005589,120]
[320800159,1711561904210,-500.0,0.0005589,120]
[320800160,1711561904220,-635.55,0.0005589,120]
[320800161,1711561904231,-500.0,0.0005589,120]
[320800162,1711561904242,-500.0,0.0005589,120]
[320800163,1711561904252,-500.0,0.0005589,120]
[320800164,1711561904263,-569.07,0.0005589,120]
[320800165,1711561904273,-513.81,0.0005589,120]
[320800166,1711561904283,-885.2,0.0005589,120]
[320800167,1711561904294,-507.05,0.0005589,120]
[320800168,1711561904305,-500.0,0.0005589,120]
[320800169,1711561904316,-345.9,0.0005589,120]
[320800170,1711561904326,-500.0,0.0005589,120]
[320800171,1711561904336,-969.37,0.0005589,120]
[320800172,1711561904346,-500.0,0.0005589,120]
[320800173,1711561904360,-500.0,0.0005589,120]
[320800174,1711561904370,-500.0,0.0005589,120]
[320800175,1711561904380,-712.96,0.0005589,120]
[320800176,1711561904390,-500.0,0.0005589,120]
[320800177,1711561904400,-500.0,0.0005589,120]
[320800178,1711561904410,-500.0,0.0005589,120]
[320800179,1711561904420,-607.67,0.0005589,120]
[320800180,1711561904430,-500.0,0.0005589,120]
[320800181,1711561904441,-500.0,0.0005589,120]
[320800182,1711561904451,-631.34,0.0005589,120]
[320800183,1711561904461,-500.0,0.0005589,120]
[320800184,1711561904472,-572.09,0.0005589,120]
[320800185,1711561904482,-633.56,0.0005589,120]
[320800186,1711561904493,-500.0,0.0005589,120]
[320800187,1711561904503,-1276.08,0.0005589,120]
[320800188,1711561904514,-743.04,0.0005589,120]
[320800189,1711561904525,-994.38,0.0005589,120]
[320800190,1711561904536,-1464.37,0.0005589,120]
[320800191,1711561904546,-1308.17,0.0005589,120]
[320800192,1711561904557,-500.0,0.0005589,120]
[320800193,1711561904567,-500.0,0.0005589,120]
[320800194,1711561904578,-500.0,0.0005589,120]
[320800195,1711561904589,-1966.83,0.0005589,120]
[320800196,1711561904600,-882.23,0.0005589,120]
[320800197,1711561904612,-1167.58,0.0005589,120]
[320800198,1711561904638,-500.0,0.0005589,120]
[320800199,1711561904670,-939.99,0.0005589,120]
[320800200,1711561904713,-1680.42,0.0005589,120]
[320800201,1711561904761,-454.04,0.0005589,120]
[320800202,1711561904816,-654.45,0.0005589,120]
[320800203,1711561904838,-1090.78,0.0005589,120]
[320800204,1711561904853,-635.32568737,0.0005589,120]
[320800205,1711561904866,-5693.99,0.0005589,120]
[320800206,1711561904877,-2767.8,0.0005589,120]
[320800207,1711561904888,-631.11,0.0005589,120]
[320800208,1711561904900,-500.0,0.0005589,120]
[320800209,1711561904913,-638.94,0.0005589,120]
[320800210,1711561905103,-3576.66,0.0005589,120]
[320800211,1711561905132,-1880.06,0.0005589,120]
[320800212,1711561905142,-597.69,0.0005589,120]
[320800213,1711561905152,-1154.81,0.0005589,120]
[320800214,1711561905164,-11680.99,0.0005589,120]
[320800215,1711561905174,-1513.74,0.0005589,120]
[320800216,1711561905184,-500.0,0.0005589,120]
[320800217,1711561905195,-500.0,0.0005589,120]
[320800218,1711561905205,-500.0,0.0005589,120]
[320800219,1711561905214,-4891.01,0.0005589,120]
[320800220,1711561905225,-500.0,0.0005589,120]
[320800221,1711561905235,-820.32,0.0005589,120]
[320800222,1711561905244,-2266.19,0.0005589,120]
[320800223,1711561905254,-4319.88,0.0005589,120]
[320800224,1711561905265,-638.01,0.0005589,120]
[320800225,1711561905276,-500.0,0.0005589,120]
[320800226,1711561905286,-1948.43,0.0005589,120]
[320800227,1711561905297,-594.89,0.0005589,120]
[320800228,1711561905307,-58191.63,0.0005589,120]
[320800229,1711561905316,-4872.06,0.0005589,120]
[320800230,1711561905327,-500.0,0.0005589,120]
[320800231,1711561905337,-500.0,0.0005589,120]
[320800232,1711561905348,-916.42,0.0005589,120]
[320800233,1711561905361,-25819.15,0.0005589,120]
[320800234,1711561905372,-672.12,0.0005589,120]
[320800235,1711561905382,-500.0,0.0005589,120]
[320800236,1711561905393,-500.0,0.0005589,120]
[320800237,1711561905404,-2822.64,0.0005589,120]
[320800238,1711561905414,-5739.01,0.0005589,120]
[320800239,1711561905424,-1773.91,0.0005589,120]
[320800240,1711561905434,-1599.36,0.0005589,120]
[320800241,1711561905444,-7896.21,0.0005589,120]
[320800242,1711561905454,-580.5,0.0005589,120]
[320800243,1711561905464,-500.0,0.0005589,120]
[320800244,1711561905475,-702.31,0.0005589,120]
[320800245,1711561905485,-4077.6,0.0005589,120]
[320800246,1711561905495,-962.02,0.0005589,120]
[320800247,1711561905505,-1910.86,0.0005589,120]
[320800248,1711561905515,-993.68,0.0005589,120]
[320800249,1711561905526,-1981.61,0.0005589,120]
[320800250,1711561905536,-1310.9,0.0005589,120]
[320800251,1711561905547,-5861.79,0.0005589,120]
[320800252,1711561905557,-861.74,0.0005589,120]
[320800253,1711561905567,-3868.28,0.0005589,120]
[320800254,1711561905577,-4602.46,0.0005589,120]
[320800255,1711561905587,-500.0,0.0005589,120]
[320800256,1711561905597,-2663.41,0.0005589,120]
[320800257,1711561905609,-2285.5,0.0005589,120]
[320800258,1711561905619,-7201.79,0.0005589,120]
[320800259,1711561905629,-1041.92,0.0005589,120]
[320800260,1711561905640,-500.0,0.0005589,120]
[320800261,1711561905650,-2054.16,0.0005589,120]
[320800262,1711561905660,-500.0,0.0005589,120]
[320800263,1711561905671,-1431.94,0.0005589,120]
[320800264,1711561905682,-500.0,0.0005589,120]
[320800265,1711561905692,-18909.02,0.0005589,120]
[320800266,1711561905702,-1528.43,0.0005589,120]
[320800267,1711561905713,-1715.09,0.0005589,120]
[320800268,1711561905722,-543.42,0.0005589,120]
[320800269,1711561905732,-836.18,0.0005589,120]
[320800270,1711561905743,-2529.3,0.0005589,120]
[320800271,1711561905754,-1204.05,0.0005589,120]
[320800272,1711561905764,-500.0,0.0005589,120]
[320800273,1711561905774,-1890.07,0.0005589,120]
[320800274,1711561905785,-882.15,0.0005589,120]
[320800275,1711561905795,-1395.77,0.0005589,120]
[320800276,1711561905805,-500.0,0.0005589,120]
[320800277,1711561905816,-500.0,0.0005589,120]
[320800278,1711561905827,-22066.4,0.0005589,120]
[320800279,1711561905837,-9133.29,0.0005589,120]
[320800280,1711561905847,-3276.54,0.0005589,120]
[320800281,1711561905860,-3779.21,0.0005589,120]
[320800282,1711561905873,-500.0,0.0005589,120]
[320800283,1711561905884,-505.39,0.0005589,120]
[320800284,1711561905894,-1407.53,0.0005589,120]
[320800285,1711561905906,-1780.21,0.0005589,120]
[320800286,1711561905916,-744.71,0.0005589,120]
[320800287,1711561905927,-3375.62,0.0005589,120]
[320800288,1711561905937,-500.0,0.0005589,120]
[320800289,1711561905947,-1245.33,0.0005589,120]
[320800290,1711561905957,-825.22,0.0005589,120]
[320800291,1711561905968,-500.0,0.0005589,120]
[320800292,1711561905978,-2499.0,0.0005589,120]
[320800293,1711561905989,-1139.82,0.0005589,120]
[320800294,1711561905999,-500.0,0.0005589,120]
[320800295,1711561906009,-3390.46,0.0005589,120]
[320800296,1711561906020,-2297.82,0.0005589,120]
[320800297,1711561906030,-36215.98,0.0005589,120]
[320800298,1711561906040,-2115.9,0.0005589,120]